Cogmind - Beta 13 @@@ ROGUE MODE // 2024.07.28 @ 13:37:51 Player: weedlord420 Result: Destroyed by as-28059 with Assembled Blade Performance ------------- Evolutions (0) 0 Regions Visited (3) 600 Robots Destroyed (16) 80 Value Destroyed (256) 256 Prototype IDs (1) 20 Alien Tech Used (0) 0 Bonus (60) 60 TOTAL SCORE: 1016 Bonus ------- Follower Combat Kills 60 Cogmind --------- Core Integrity 0/250 Matter 295/300 Energy 75/100 System Corruption 10% Temperature Warm (117) Movement Core (350) Ox6 Location -10/Exiles Parts ------- > --- POWER (1) -------- (None) > --- PROPULSION (2) --- (None) > --- UTILITY (2) ------ Large Storage Unit > --- WEAPON (2) ------- (None) > --- INVENTORY (15) --- Light Treads Medium Storage Unit Seismic Detector Core Shielding Weapon Shielding Splice Drone Bay (6/6) Small Laser Peak State ------------ > --- POWER ------------ Light Ion Engine > --- PROPULSION ------- Light Treads Light Treads > --- UTILITY ---------- Large Storage Unit Splice Drone Bay > --- WEAPON ----------- Medium Laser Light Assault Rifle > --- INVENTORY -------- Light Treads Medium Storage Unit Seismic Detector Weapon Shielding Hacking Suite Small Laser Particle Gun Light Cannon [Rating: 14] Favorites ----------- Power Ion Engine Engine Ion Engine Propulsion Light Treads Treads Light Treads Utility Large Storage Unit Device Seismic Detector Storage Large Storage Unit Hackware Hacking Suite Weapon Medium Laser Energy Gun Medium Laser Ballistic Gun Light Assault Rifle Ballistic Cannon Light Cannon Build | -11 -10 -10 -10 ------- Run | Yrd Mat Min Exi Slots Evolved . | . . . . Power . | . . . . Propulsion . | . . . . Utility . | . . . . Weapon . | . . . . Parts Attached 16 | 6 4 4 2 Power 2 | 1 . 1 . Engine 2 | 1 . 1 . Core . | . . . . Reactor . | . . . . Propulsion 2 | 2 . . . Treads 2 | 2 . . . Leg . | . . . . Wheel . | . . . . Hover . | . . . . Flight . | . . . . Utility 6 | 1 3 2 . Device 2 | . 1 1 . Storage 3 | 1 2 . . Processor . | . . . . Hackware 1 | . . 1 . Protection . | . . . . Artifact . | . . . . Weapon 6 | 2 1 1 2 Energy Gun 3 | 1 . 1 1 Energy Cannon . | . . . . Ballistic Gun 2 | 1 1 . . Ballistic Cannon 1 | . . . 1 Launcher . | . . . . Special Weapon . | . . . . Impact Weapon . | . . . . Slashing Weapon . | . . . . Piercing Weapon . | . . . . Special Melee Weapon . | . . . . Unidentified Prototypes 1 | . . 1 . Parts Lost 10 | . . 2 8 Power 2 | . . 1 1 Propulsion 2 | . . . 2 Utility 1 | . . . 1 Weapon 5 | . . 1 4 Highest Loss Streak 8 | . . 2 8 To Critical Strikes 3 | . . . 3 Average Slot Usage (%) 96 | . 95 98 94 Engine 13 | . 14 13 12 Treads 27 | . 28 28 26 Device 9 | . 9 9 . Storage 14 | . 14 14 14 Hackware 1 | . . 2 12 Energy Gun 11 | . 9 14 12 Ballistic Gun 16 | . 18 14 12 Naked Turns . | . . . . Heaviest Build 30 | 14 30 29 26 Greatest Support 40 | 40 40 40 40 Greatest Overweight (x) . | . . . . Average Overweight (x) . | . . . . Largest Inventory Capacity 15 | 8 15 15 15 Average Capacity 12 | 5 11 15 15 Most Carried 10 | 5 7 10 9 Average Carried 5 | 2 4 7 8 Final Capacity 15 | 8 15 15 15 Final Carried 9 | . 7 9 7 Class Distribution -------------------- 100% | Mutant Dominant Class ---------------- Mutant | -10/Materials Mutant | -10/Mines Mutant | -10/Exiles Resources | -11 -10 -10 -10 ----------- Run | Yrd Mat Min Exi Matter Collected 525 | 249 211 53 12 Remotely . | . . . . Salvage Created 514 | . 360 154 . Parts 32 | . 28 4 . Haulers Intercepted 2 | . 2 . . Recyclers Shooed 1 | . 1 . . Parts Field Recycled . | . . . . Retrieved Matter . | . . . . Parts Self-Destructed . | . . . . Prevented . | . . . . Kills | -11 -10 -10 -10 ------- Run | Yrd Mat Min Exi Combat Hostiles Destroyed 11 | . 9 2 . Guns 11 | . 9 2 . Classes Destroyed 6 | . 5 1 . Worker 1 | . . 1 . Hauler 2 | . 2 . . Operator 1 | . 1 . . Watcher 1 | . 1 . . Swarmer 7 | . 5 2 . Grunt 4 | . 4 . . Best Kill Streak 5 | . 5 2 . Combat Bots Only 5 | . 5 2 . Max Kills in Single Turn 1 | . 1 1 . Gunslinging . | . . . . Exploded . | . . . . Melee . | . . . . Uniques/NPCs Destroyed . | . . . . Combat | -11 -10 -10 -10 -------- Run | Yrd Mat Min Exi Hostile Shots Fired 101 | . 37 22 42 Missed 16 | . 5 6 5 Damage Taken 1206 | . 419 136 651 Core 258 | . 40 25 193 Absorbed by Shields . | . . . . Core Remaining (%) 100 | 100 . . . Volleys Fired 69 | . 50 10 9 Largest 2 | . 2 2 2 Hottest 70 | . 70 70 70 Shots Fired 131 | . 96 21 14 Gun 128 | . 96 21 11 Cannon 3 | . . . 3 Launcher . | . . . . Special . | . . . . Kinetic 72 | . 53 11 8 Thermal 59 | . 43 10 6 Explosive . | . . . . Electromagnetic . | . . . . Robot Hit Streak 7 | . 7 3 6 Robot Miss Streak 11 | . 11 4 3 Penetration Max . | . . . . Secondary Targets 3 | . 2 1 . Max Gunslinging Chain 1 | . 1 1 . Shots Hit Robots 71 | . 52 9 10 Core Hits 33 | . 23 4 6 Critical Kills . | . . . . Critical Parts Destroyed 1 | . . 1 . Critical Strikes 3 | . 2 1 . Burn 2 | . 2 . . Destroy 1 | . . 1 . Melee Attacks . | . . . . Impact . | . . . . Slashing . | . . . . Piercing . | . . . . Sneak Attacks . | . . . . Combat Hostiles . | . . . . Follow-up Attacks . | . . . . Damage Inflicted 863 | . 655 98 110 Guns 820 | . 655 88 77 Cannons 33 | . . . 33 Explosions . | . . . . Melee . | . . . . Ramming 10 | . . 10 . Kinetic 506 | . 408 39 59 Thermal 347 | . 247 49 51 Explosive . | . . . . Electromagnetic . | . . . . Impact . | . . . . Slashing . | . . . . Piercing . | . . . . Highest Corruption 10 | . 3 3 10 Average Corruption 2 | . 2 3 3 Corruption Purged . | . . . . Corruption Blocked . | . . . . Effects 25 | . 4 19 2 Message Errors 3 | . . 3 . Matter Fused 4 | . 1 3 . Heat Flow Errors 5 | . 2 2 1 Energy Discharges 5 | . 1 4 . Parts Fused 1 | . . 1 . Data Loss (minor) 2 | . . 2 . Data Loss (major) 1 | . . 1 . Misfires 3 | . . 2 1 Weapon Failures 1 | . . 1 . Overload Shots . | . . . . Overflow Damage . | . . . . Projectiles . | . . . . Explosions . | . . . . Melee . | . . . . Knockbacks 1 | . . . 1 Impact . | . . . . Kinetic 1 | . . . 1 Secondary . | . . . . Self-Inflicted Damage . | . . . . Shots . | . . . . Rammed 1 | . . 1 . Targets Rammed 2 | . . 2 . Kicked . | . . . . Crushed 1 | . . 1 . Highest Temperature 276 | . 276 152 156 Average Temperature 68 | . 70 45 95 Received Heat Transfer 362 | . 216 6 140 Siege Activations . | . . . . Robots Corrupted . | . . . . Combat Hostiles . | . . . . Parts Fried . | . . . . Impact Corruptions . | . . . . Robots Melted . | . . . . Combat Hostiles . | . . . . Parts Melted 2 | . 2 . . Heat Transferred 1193 | . 888 148 157 Parts Sabotaged . | . . . . Parts Stolen . | . . . . Parts Stripped . | . . . . Power Chain Reactions . | . . . . Alert | -11 -10 -10 -10 ------- Run | Yrd Mat Min Exi Peak Influence 132 | . 132 120 . Initial . | . . . . Average 56 | . 58 54 . Maximum Alert Level . | . . . . Low Security (%) 100 | 100 100 100 . Level 1 . | . . . . Level 2 . | . . . . Level 3 . | . . . . Level 4 . | . . . . Level 5 . | . . . . High Security . | . . . . Max Security . | . . . . Squads Dispatched 2 | . 2 . . Investigation . | . . . . Extermination . | . . . . Reinforcement 2 | . 2 . . Assault . | . . . . Garrison . | . . . . Intercept . | . . . . Searches Triggered . | . . . . Construction Impeded . | . . . . Haulers Reinforced . | . . . . Active Scanning Responses . | . . . . Cargo Convoy Interrupts . | . . . . Stealth | -11 -10 -10 -10 --------- Run | Yrd Mat Min Exi Distress Signals . | . . . . Communications Jammed . | . . . . Distress Signals . | . . . . Times Spotted 34 | . 20 6 8 Peak Tracking Total 9 | . 3 3 9 Tactical Retreats 4 | . . 4 . Traps | -11 -10 -10 -10 ------- Run | Yrd Mat Min Exi Traps Triggered 4 | . 4 . . Indirectly . | . . . . Trap Hack Attempts . | . . . . Triggered . | . . . . Disarmed . | . . . . Reprogrammed . | . . . . Reused . | . . . . Traps Extracted . | . . . . Installed . | . . . . Triggered . | . . . . Machines | -11 -10 -10 -10 ---------- Run | Yrd Mat Min Exi Machines Disabled 3 | . . . 3 Max in Single Turn 1 | . . . 1 Machines Repaired . | . . . . Machines Dismantled . | . . . . Machines Sabotaged . | . . . . Overloaded Fab Kills . | . . . . Hacking | -11 -10 -10 -10 --------- Run | Yrd Mat Min Exi Machines Accessed 6 | . 5 1 . Terminals 4 | . 4 . . Fabricators . | . . . . Repair Stations 1 | . 1 . . Recycling Units . | . . . . Scanalyzers . | . . . . Garrison Access . | . . . . Total Hacks 17 | . 16 1 . Successful 7 | . 6 1 . Failed 10 | . 10 . . Catastrophic 1 | . 1 . . Database Lockouts . | . . . . Manual 8 | . 8 . . Terminals 13 | . 13 . . Fabricators . | . . . . Repair Stations 3 | . 3 . . Recycling Units . | . . . . Scanalyzers . | . . . . Garrison Access . | . . . . Terminal Hacks 6 | . 5 1 . Open Door 1 | . . 1 . Alert Level 1 | . 1 . . Unreport Threat 1 | . 1 . . Locate Traps 2 | . 2 . . Recall Reinforcements 1 | . 1 . . Fabricator Hacks . | . . . . Repair Station Hacks 1 | . 1 . . Scan Component 1 | . 1 . . Recycling Unit Hacks . | . . . . Scanalyzer . | . . . . Garrison Access Hacks . | . . . . Unauthorized Hacks . | . . . . Terminals . | . . . . Fabricators . | . . . . Repair Stations . | . . . . Recycling Units . | . . . . Scanalyzers . | . . . . Garrison Access . | . . . . Data Cores Recovered . | . . . . Used . | . . . . Hacking Detections 4 | . 4 . . Full Trace Events . | . . . . Feedback Events . | . . . . Feedback Blocked . | . . . . Robot Schematics Acquired . | . . . . Robots Built . | . . . . Authchips . | . . . . Time . | . . . . Total Robot Build Rating . | . . . . Part Schematics Acquired . | . . . . Parts Built . | . . . . Authchips . | . . . . Time . | . . . . Total Part Build Rating . | . . . . Parts Repaired . | . . . . Time . | . . . . Parts Recycled . | . . . . Recycled Matter . | . . . . Retrieved Matter . | . . . . Retrieved Components . | . . . . Parts Scanalyzed . | . . . . Part Schematics Acquired . | . . . . Parts Damaged . | . . . . Bothacking | -11 -10 -10 -10 ------------ Run | Yrd Mat Min Exi Used RIF Installer . | . . . . Robots Hacked . | . . . . Non-combat . | . . . . Combat . | . . . . Robot Hacks Applied . | . . . . Relay Couplers Released . | . . . . Fabnet Peak Effective % . | . . . . Robots Rewired . | . . . . Allies Hacked . | . . . . Hacks Repelled . | . . . . Allies | -11 -10 -10 -10 -------- Run | Yrd Mat Min Exi Total Allies 3 | . . 3 . Largest Group 3 | . . 3 2 Highest-Rated Group 40 | . . 40 32 Highest-Rated Ally 16 | . . 16 16 Total Orders 1 | . . 1 . RETURN 1 | . . 1 . Ally Attacks 22 | . . 15 7 Total Damage 229 | . . 168 61 Kills 3 | . . 2 1 Allies Corrupted . | . . . . Allies Melted . | . . . . Intel | -11 -10 -10 -10 ------- Run | Yrd Mat Min Exi Robot Analysis Total . | . . . . Derelict Logs Recovered 2 | . . 2 . Drone Launches 1 | . . 1 . Drone Recoveries 1 | . . 1 . Exploration | -11 -10 -10 -10 ------------- Run | Yrd Mat Min Exi Turns Passed 2595 | 40 1444 1011 100 Spaces Moved 1468 | 43 797 579 49 Core 36 | 36 . . . Treads 1432 | 7 797 579 49 Legs . | . . . . Wheels . | . . . . Hover . | . . . . Flight . | . . . . Fastest Speed 50 | 50 160 160 160 Average Speed 157 | 67 160 160 160 Slowest Speed 160 | 160 160 160 160 Overloaded Moves . | . . . . Propulsion Burnouts . | . . . . Robots Hopped . | . . . . Cave-ins Triggered . | . . . . Exploration Rate (%) 55 | 3 98 98 22 Regions Visited 3 Branch Regions 2 Pre-discovered Areas 1 | . . 1 . Known Exits Taken 1 | . . 1 . Unknown Exits Taken 2 | 1 1 . . Scrap Searched 1 | . . 1 . Spaces Dug . | . . . . Terrain Destroyed . | . . . . Melee . | . . . . Projectile . | . . . . AOE . | . . . . Terrain Rammed . | . . . . Walls Destroyed . | . . . . Machines Disabled . | . . . . Actions | -11 -10 -10 -10 --------- Run | Yrd Mat Min Exi Total 1628 | 53 870 645 60 Wait 56 | . 10 46 . Move 1465 | 42 796 578 49 Hop . | . . . . Pick Up 18 | 5 9 4 . Fast Attach 1 | 1 . . . Attach 11 | 5 1 3 2 Detach 1 | . . 1 . Swap 4 | . 3 1 . Drop 1 | . 1 . . Fire 69 | . 50 10 9 Melee . | . . . . Ram . | . . . . Kick . | . . . . Crush 2 | . . 2 . Escape Stasis . | . . . . Rewire . | . . . . Trap . | . . . . Miscellaneous . | . . . . Route ------- -11/Scrapyard -10/Materials (discovered 4 exits: [*Mat x3] / *Min) -10/Mines (discovered 3 exits: [*Mat x2] / *Exi) -10/Exiles History --------- Turn | Location | Event 20 | -11/Scrapyard | Discovered new exit (range 12) 41 | -11/Scrapyard | Entered Materials 317 | -10/Materials | Build established: Mutant 463 | -10/Materials | Discovered new exit (range 12) 959 | -10/Materials | Discovered new exit (range 15) 1209 | -10/Materials | Discovered new exit (range 13) 1297 | -10/Materials | Discovered new exit (range 16) 1485 | -10/Materials | Entered Mines 1537 | -10/Mines | Identified exit to Exiles 1557 | -10/Mines | Discovered new exit (range 4) 1699 | -10/Mines | Discovered new exit (range 7) 1815 | -10/Mines | Assisted by bots powering up and referring to "LRC-V3" 1982 | -10/Mines | Learned Materials machine intel 2048 | -10/Mines | Learned location of Storage (-8) 2165 | -10/Mines | Found the Drone Emporium 2178 | -10/Mines | Found Prototype Device 2179 | -10/Mines | Identified Splice Drone Bay 2496 | -10/Mines | Entered Exiles 2496 | -10/Exiles | Accompanied by 2 allies 2536 | -10/Exiles | Met 8R-AWN 2564 | -10/Exiles | Met EX-HEX 2574 | -10/Exiles | Attacked by the Exiles 2589 | -10/Exiles | Core integrity fell below 50% 2592 | -10/Exiles | System corruption reached 10% 2594 | -10/Exiles | Core integrity fell below 20% 2596 | -10/Exiles | Destroyed by as-28059 with Assembled Blade Last Messages --------------- 02587_ Lgt. Assault Rifle destroyed. 02589_ as-95357 knocked back. 02589_ Penetrated by HV Slug. 02589_ Critical hit (Destroy). 02589_ Lgt. Ion Engine destroyed. 02589_ Penetrated by HV Slug. 02591_ Lgt. Treads destroyed. 02591_ System corrupted by crushing effect (+3). 02591_ Knocked back. 02592_ Acquired 8 matter. 02592_ HV Slug penetrates Machine. 02592_ Penetrated by HV Slug. 02594_ Acquired 4 matter. 02594_ Penetrated by HV Slug. 02594_ Critical hit (Destroy). 02594_ Lgt. Cannon destroyed. 02595_ Knocked back. 02596_ Penetrated by HV Slug. 02596_ Critical hit (Destroy). 02596_ Particle Gun destroyed. Map ----- +----------------------------------------------------+ | ?????????????????????????????????????????????????? | | ?????????????????????????????????????????????????? | | ?????????????????????????????????????????????????? | | ?????????????????????????????????????????????????? | | ?????????????????????????????????????????????????? | | ?????????????????????????????????????????????????? | | ?????????????????????????????????????????????????? | | ?????????????????????????????????????????????????? | | ?????????????????????????????????????????????????? | | ?????????????????????????????????????????????????? | | ?????????????????????????????????????????????????? | | ?????????????????????????????????????????????????? | | ?????????????????????????????????????????????????? | | ?????????????????????????????????????????????????? | | ?????????????????????????????????????????????????? | | ?????????????????????????????????????????????????? | | ?????????????????#??#######??????????????????????? | | ?????????????#####"""""""""##????????????????????? | | ???????????? " """ """"##???????????????????? | | ???????????? "" " #???????????????????? | | ???????????? " """#???????????????????? | | ??????????? "a"#???????????#####???? | | ??????????? " "##?????????##" #???? | | ?????????? ""###???????#" #???? | | ?????????? ! """#??????##" ##??? | | ??????????" @a! #????### ###? | | ?????????????"" !%!! ##???# ## | | ????????????# !!a % ##?## # | | ????????????#"""" ! = % ### | | ?????????????"" aa g% ## | | ?????????????"" a #### | | ????????????? ""#?#"""""# | | ???????????? #"""##?####### | | ????????????? % ######????????? | | ????????????? ##?????????????? | | ?????????????? " ##??????????????? | | ?????????????? """ a ""#???????????????? | | ???????????????" " ""# "##???????????????? | | ?????????????????" "??##"""" ""##????????????????? | | ???????????????????????#########?????????????????? | | ?????????????????????????????????????????????????? | | ?????????????????????????????????????????????????? | | ?????????????????????????????????????????????????? | | ?????????????????????????????????????????????????? | | ?????????????????????????????????????????????????? | | ?????????????????????????????????????????????????? | | ?????????????????????????????????????????????????? | | ?????????????????????????????????????????????????? | | ?????????????????????????????????????????????????? | | ?????????????????????????????????????????????????? | +----------------------------------------------------+ Best States ------------- Heat Dissipation 25 Energy Generation 10 Energy Capacity 250 Matter Stores 300 Matter Capacity 300 Sight Range 16 Terrain Scan Density 10 Evasion (%) 50 Recoil Reduction 2 Offensive Hacking 10 Item Schematics ----------------- None Robot Schematics ------------------ None Fabricated ------------ Nothing Alien Tech Used ----------------- None Achievements -------------- None Challenges ------------ None Game ------ Seed GravmagOpticalScythe Manual? 0 Play Time 00:13:10 Cumulative 45.8 hours Start 2024.07.28 @ 13:26:11 End 2024.07.28 @ 13:37:51 Sessions 1 Manual Loads 0 Difficulty Rogue Special Mode None Game No. 90 Rogue 89 Adventurer 1 Explorer 0 Win Type - Total 0 Types 0/0/0/0/0/0/0/0/0 Lore% 20 Gallery% 40 Achievement% 33 Wizard Run 0 Options --------- Layout 2 ASCII 0 Keyboard 0 Movement Mouse Keybinds 0 Fullscreen 1 Font 48/Smallcaps Map View 50x44 Zoom Use 0% Tactical HUD 1 Map Filters NONE Filters NONE Steam 1 RUN: 390925cf-11d3-497a-b3b6-63503ee9f921